lending/lending_fUSD_20250210
["ID","MTS","AMOUNT","RATE_DAILY","PERIOD"]
[352574318,1739175048637,-151.0,0.00012329,2]
[352574319,1739175048647,-151.0,0.00012329,2]
[352574320,1739175048657,-749.507924,0.00012329,2]
[352574321,1739175048667,-749.507924,0.00012329,2]
[352574322,1739175048677,-749.507924,0.00012329,2]
[352574323,1739175048687,-749.507924,0.00012329,2]
[352574324,1739175048698,-749.507924,0.00012329,2]
[352574325,1739175048709,-749.507924,0.00012329,2]
[352574326,1739175048721,-749.507924,0.00012329,2]
[352574327,1739175048731,-749.507924,0.00012329,2]
[352574328,1739175048743,-749.507924,0.00012329,2]
[352574329,1739175048755,-749.507924,0.00012329,2]
[352574330,1739175048766,-151.0,0.00012329,2]
[352574331,1739175048778,-179.922481,0.00012329,2]
[352574332,1739175048790,-151.0,0.00012329,2]
[352574333,1739175048803,-151.0,0.00012329,2]
[352574334,1739175048814,-151.0,0.00012329,2]
[352574335,1739175048825,-151.0,0.00012329,2]
[352574336,1739175048836,-151.0,0.00012329,2]
[352574337,1739175048847,-151.0,0.00012329,2]
[352574338,1739175048858,-151.0,0.00012329,2]
[352574339,1739175048869,-151.0,0.00012329,2]
[352574340,1739175048881,-151.0,0.00012329,2]
[352574341,1739175048892,-9234.295174,0.00012329,2]
[352574342,1739175048902,-9234.295174,0.00012329,2]
[352574343,1739175048913,-9234.295174,0.00012329,2]
[352574344,1739175048923,-9234.295174,0.00012329,2]
[352574345,1739175048934,-9234.295174,0.00012329,2]
[352574346,1739175048945,-9234.295174,0.00012329,2]
[352574347,1739175049118,-9234.295174,0.00012329,2]
[352574348,1739175049128,-151.0,0.00012329,2]
[352574349,1739175049138,-151.0,0.00012329,2]
[352574350,1739175049148,-151.0,0.00012329,2]
[352574351,1739175049157,-151.936841,0.00012329,2]
[352574352,1739175049166,-173.851926,0.00012329,2]
[352574353,1739175049176,-173.851926,0.00012329,2]
[352574354,1739175049186,-173.851926,0.00012329,2]
[352574355,1739175049197,-173.851926,0.00012329,2]
[352574356,1739175049208,-173.851926,0.00012329,2]
[352574357,1739175049219,-173.851926,0.00012329,2]
[352574358,1739175049229,-173.851926,0.00012329,2]
[352574359,1739175049240,-151.0,0.00012329,2]
[352574360,1739175049251,-173.851926,0.00012329,2]
[352574361,1739175049262,-151.0,0.00012329,2]
[352574362,1739175049272,-173.851926,0.00012329,2]
[352574363,1739175049282,-151.0,0.00012329,2]
[352574364,1739175049294,-173.851926,0.00012329,2]
[352574365,1739175049305,-151.0,0.00012329,2]
[352574366,1739175049315,-151.0,0.00012329,2]
[352574367,1739175049326,-982.904304,0.00012329,2]
[352574368,1739175049336,-1408.008449,0.00012329,2]
[352574369,1739175049346,-982.904304,0.00012329,2]
[352574370,1739175049357,-1408.008449,0.00012329,2]
[352574371,1739175049367,-982.904304,0.00012329,2]
[352574372,1739175049377,-1408.008449,0.00012329,2]
[352574373,1739175049387,-982.904304,0.00012329,2]
[352574374,1739175049398,-1408.008449,0.00012329,2]
[352574375,1739175049410,-1408.008449,0.00012329,2]
[352574376,1739175049422,-982.904304,0.00012329,2]
[352574377,1739175049433,-1408.008449,0.00012329,2]
[352574378,1739175049443,-982.904304,0.00012329,2]
[352574379,1739175049454,-982.904304,0.00012329,2]
[352574380,1739175049464,-1408.008449,0.00012329,2]
[352574381,1739175049474,-982.904304,0.00012329,2]
[352574382,1739175049483,-1408.008449,0.00012329,2]
[352574383,1739175049493,-982.904304,0.00012329,2]
[352574384,1739175049502,-1408.008449,0.00012329,2]
[352574385,1739175049512,-982.904304,0.00012329,2]
[352574386,1739175049523,-1408.008449,0.00012329,2]
[352574387,1739175049532,-151.0,0.00012329,2]
[352574388,1739175049545,-151.0,0.00012329,2]
[352574389,1739175049554,-151.0,0.00012329,2]
[352574390,1739175049564,-151.0,0.00012329,2]
[352574391,1739175049574,-151.0,0.00012329,2]
[352574392,1739175049583,-151.0,0.00012329,2]
[352574393,1739175049593,-151.0,0.00012329,2]
[352574394,1739175049603,-151.0,0.00012329,2]
[352574395,1739175049612,-151.0,0.00012329,2]
[352574396,1739175049622,-252.214228,0.00012329,2]
[352574397,1739175049633,-336.820439,0.00012329,2]
[352574398,1739175049642,-336.820439,0.00012329,2]
[352574399,1739175049652,-336.820439,0.00012329,2]
[352574400,1739175049662,-336.820439,0.00012329,2]
[352574401,1739175049672,-336.820439,0.00012329,2]
[352574402,1739175049681,-336.820439,0.00012329,2]
[352574403,1739175049690,-336.820439,0.00012329,2]
[352574404,1739175049700,-336.820439,0.00012329,2]
[352574405,1739175049710,-336.820439,0.00012329,2]
[352574406,1739175049719,-336.820439,0.00012329,2]
[352574407,1739175049728,-151.0,0.00012329,2]
[352574408,1739175049738,-151.0,0.00012329,2]
[352574409,1739175049748,-151.0,0.00012329,2]
[352574410,1739175049757,-190.47962,0.00012329,2]
[352574411,1739175049767,-151.0,0.00012329,2]
[352574412,1739175049778,-151.0,0.00012329,2]
[352574413,1739175049789,-151.0,0.00012329,2]
[352574414,1739175049800,-151.0,0.00012329,2]
[352574415,1739175049810,-152.108195,0.00012329,2]
[352574416,1739175049820,-151.0,0.00012329,2]
[352574417,1739175049829,-151.0,0.00012329,2]
[352574418,1739175049838,-151.0,0.00012329,2]
[352574419,1739175049848,-220.192367,0.00012329,2]
[352574420,1739175049858,-495.541542,0.00012329,2]
[352574421,1739175049868,-495.541542,0.00012329,2]
[352574422,1739175049878,-495.541542,0.00012329,2]
[352574423,1739175049887,-495.541542,0.00012329,2]
[352574424,1739175049896,-495.541542,0.00012329,2]
[352574425,1739175049905,-151.0,0.00012329,2]
[352574426,1739175049915,-495.541542,0.00012329,2]
[352574427,1739175049924,-151.0,0.00012329,2]
[352574428,1739175049933,-495.541542,0.00012329,2]
[352574429,1739175049943,-151.0,0.00012329,2]
[352574430,1739175049952,-151.0,0.00012329,2]
[352574431,1739175049961,-495.541542,0.00012329,2]
[352574432,1739175049970,-151.0,0.00012329,2]
[352574433,1739175049980,-151.0,0.00012329,2]
[352574434,1739175049989,-495.541542,0.00012329,2]
[352574435,1739175049999,-151.0,0.00012329,2]
[352574436,1739175050009,-209.297969,0.00012329,2]
[352574437,1739175050018,-495.541542,0.00012329,2]
[352574438,1739175050028,-151.0,0.00012329,2]
[352574439,1739175050038,-151.0,0.00012329,2]
[352574440,1739175050051,-151.0,0.00012329,2]
[352574441,1739175050061,-151.0,0.00012329,2]
[352574442,1739175050071,-151.148099,0.00012329,2]
[352574443,1739175050081,-151.0,0.00012329,2]
[352574444,1739175050091,-151.0,0.00012329,2]
[352574445,1739175050101,-151.0,0.00012329,2]
[352574446,1739175050110,-151.0,0.00012329,2]
[352574447,1739175050119,-151.0,0.00012329,2]
[352574448,1739175050129,-151.0,0.00012329,2]
[352574449,1739175050139,-151.0,0.00012329,2]
[352574450,1739175050148,-151.0,0.00012329,2]
[352574451,1739175050157,-170.111206,0.00012329,2]
[352574452,1739175050167,-151.0,0.00012329,2]
[352574453,1739175050176,-151.0,0.00012329,2]
[352574454,1739175050185,-151.0,0.00012329,2]
[352574455,1739175050194,-151.0,0.00012329,2]
[352574456,1739175050203,-151.0,0.00012329,2]
[352574457,1739175050213,-151.0,0.00012329,2]
[352574458,1739175050223,-151.0,0.00012329,2]
[352574459,1739175050232,-151.0,0.00012329,2]
[352574460,1739175050241,-151.0,0.00012329,2]
[352574461,1739175050250,-151.0,0.00012329,2]
[352574462,1739175050259,-259.567408,0.00012329,2]
[352574463,1739175050269,-583.179096,0.00012329,2]
[352574464,1739175050279,-583.179096,0.00012329,2]
[352574465,1739175050289,-583.179096,0.00012329,2]
[352574466,1739175050300,-583.179096,0.00012329,2]
[352574467,1739175050309,-583.179096,0.00012329,2]
[352574468,1739175050319,-583.179096,0.00012329,2]
[352574469,1739175050328,-583.179096,0.00012329,2]
[352574470,1739175050337,-583.179096,0.00012329,2]
[352574471,1739175050347,-583.179096,0.00012329,2]
[352574472,1739175050356,-583.179096,0.00012329,2]
[352574473,1739175050365,-151.0,0.00012329,2]
[352574474,1739175050375,-151.0,0.00012329,2]
[352574475,1739175050384,-151.0,0.00012329,2]
[352574476,1739175050394,-151.0,0.00012329,2]
[352574477,1739175050403,-151.0,0.00012329,2]
[352574478,1739175050413,-151.0,0.00012329,2]
[352574479,1739175050423,-158.595413,0.00012329,2]
[352574480,1739175050433,-345.833307,0.00012329,2]
[352574481,1739175050442,-345.833307,0.00012329,2]
[352574482,1739175050452,-345.833307,0.00012329,2]
[352574483,1739175050462,-345.833307,0.00012329,2]
[352574484,1739175050472,-345.833307,0.00012329,2]
[352574485,1739175050482,-345.833307,0.00012329,2]
[352574486,1739175050491,-345.833307,0.00012329,2]
[352574487,1739175050501,-345.833307,0.00012329,2]
[352574488,1739175050511,-345.833307,0.00012329,2]
[352574489,1739175050521,-345.833307,0.00012329,2]
[352574490,1739175050531,-224.583997,0.00012329,2]
[352574491,1739175050544,-224.583997,0.00012329,2]
[352574492,1739175050553,-224.583997,0.00012329,2]
[352574493,1739175050563,-224.583997,0.00012329,2]
[352574494,1739175050573,-224.583997,0.00012329,2]
[352574495,1739175050583,-224.583997,0.00012329,2]
[352574496,1739175050593,-224.583997,0.00012329,2]
[352574497,1739175050602,-224.583997,0.00012329,2]
[352574498,1739175050611,-224.583997,0.00012329,2]
[352574499,1739175050624,-224.583997,0.00012329,2]
[352574500,1739175050635,-151.0,0.00012329,2]
[352574501,1739175050644,-151.0,0.00012329,2]
[352574502,1739175050654,-151.0,0.00012329,2]
[352574503,1739175050664,-151.0,0.00012329,2]
[352574504,1739175050673,-151.0,0.00012329,2]
[352574505,1739175050683,-151.0,0.00012329,2]
[352574506,1739175050692,-151.0,0.00012329,2]
[352574507,1739175050702,-161.174155,0.00012329,2]
[352574508,1739175050713,-151.0,0.00012329,2]
[352574509,1739175050723,-151.0,0.00012329,2]
[352574510,1739175050732,-151.0,0.00012329,2]
[352574511,1739175050741,-151.0,0.00012329,2]
[352574512,1739175050751,-223.054,0.00012329,2]
[352574513,1739175050766,-223.054,0.00012329,2]
[352574514,1739175050776,-151.0,0.00012329,2]
[352574515,1739175050786,-164.0,0.00012329,2]
[352574516,1739175050800,-164.0,0.00012329,2]
[352574517,1739175050810,-151.0,0.00012329,2]
[352574518,1739175050820,-151.0,0.00012329,2]
[352574519,1739175050829,-290.385249,0.00012329,2]
[352574520,1739175050839,-290.385249,0.00012329,2]
[352574521,1739175050848,-280.907553,0.00012329,2]
[352574522,1739175050858,-151.0,0.00012329,2]
[352574523,1739175050869,-280.907553,0.00012329,2]
[352574524,1739175050879,-151.0,0.00012329,2]
[352574525,1739175050888,-255.157979,0.00012329,2]
[352574526,1739175050897,-151.0,0.00012329,2]
[352574527,1739175050907,-151.0,0.00012329,2]
[352574528,1739175050916,-151.0,0.00012329,2]
[352574529,1739175050926,-151.0,0.00012329,2]
[352574530,1739175050935,-151.134351,0.00012329,2]
[352574531,1739175050945,-179.315263,0.00012329,2]
[352574532,1739175050954,-179.315263,0.00012329,2]
[352574533,1739175050964,-179.315263,0.00012329,2]
[352574534,1739175050974,-179.315263,0.00012329,2]
[352574535,1739175050983,-151.198841,0.00012329,2]
[352574536,1739175050993,-151.0,0.00012329,2]
[352574537,1739175051003,-151.0,0.00012329,2]
[352574538,1739175051012,-151.0,0.00012329,2]
[352574539,1739175051022,-151.0,0.00012329,2]
[352574540,1739175051032,-343.083804,0.00012329,2]
[352574541,1739175051044,-343.083804,0.00012329,2]
[352574542,1739175051053,-204.922804,0.00012329,2]
[352574543,1739175051062,-204.922804,0.00012329,2]
[352574544,1739175051071,-204.922804,0.00012329,2]
[352574545,1739175051081,-204.922804,0.00012329,2]
[352574546,1739175051091,-151.0,0.00012329,2]
[352574547,1739175051100,-151.0,0.00012329,2]
[352574548,1739175051111,-393.554387,0.00012329,2]
[352574549,1739175051120,-393.554387,0.00012329,2]
[352574550,1739175051130,-151.0,0.00012329,2]
[352574551,1739175051139,-151.0,0.00012329,2]
[352574552,1739175051150,-395.938598,0.00012329,2]
[352574553,1739175051159,-395.938598,0.00012329,2]
[352574554,1739175051169,-395.938598,0.00012329,2]
[352574555,1739175051179,-395.938598,0.00012329,2]
[352574556,1739175051192,-229.776827,0.00012329,2]
[352574557,1739175051201,-151.0,0.00012329,2]
[352574558,1739175051212,-151.0,0.00012329,2]
[352574559,1739175051227,-151.0,0.00012329,2]
[352574560,1739175051237,-151.0,0.00012329,2]
[352574561,1739175051251,-749.507924,0.00012329,2]
[352574562,1739175051261,-749.507924,0.00012329,2]
[352574563,1739175051273,-749.507924,0.00012329,2]
[352574564,1739175051283,-749.507924,0.00012329,2]
[352574565,1739175051295,-151.0,0.00012329,2]
[352574566,1739175051305,-151.0,0.00012329,2]
[352574567,1739175051316,-151.0,0.00012329,2]
[352574568,1739175051326,-151.0,0.00012329,2]
[352574569,1739175051336,-9234.295174,0.00012329,2]
[352574570,1739175051345,-9234.295174,0.00012329,2]
[352574571,1739175051355,-9234.295174,0.00012329,2]
[352574572,1739175051364,-9234.295174,0.00012329,2]
[352574573,1739175051374,-173.851926,0.00012329,2]
[352574574,1739175051384,-173.851926,0.00012329,2]
[352574575,1739175051393,-173.851926,0.00012329,2]
[352574576,1739175051403,-173.851926,0.00012329,2]
[352574577,1739175051413,-169.5,0.00012329,2]
[352574578,1739175051423,-1408.008449,0.00012329,2]
[352574579,1739175051432,-1408.008449,0.00012329,2]
[352574580,1739175051442,-982.904304,0.00012329,2]
[352574581,1739175051451,-982.904304,0.00012329,2]
[352574582,1739175051461,-982.904304,0.00012329,2]
[352574583,1739175051471,-982.904304,0.00012329,2]
[352574584,1739175051480,-1408.008449,0.00012329,2]
[352574585,1739175051490,-1408.008449,0.00012329,2]
[352574586,1739175051499,-151.0,0.00012329,2]
[352574587,1739175051509,-151.0,0.00012329,2]
[352574588,1739175051518,-336.820439,0.00012329,2]
[352574589,1739175051527,-336.820439,0.00012329,2]
[352574590,1739175051537,-495.541542,0.00012329,2]
[352574591,1739175051551,-495.541542,0.00012329,2]
[352574592,1739175051560,-151.0,0.00012329,2]
[352574593,1739175051570,-151.0,0.00012329,2]
[352574594,1739175051580,-151.0,0.00012329,2]
[352574595,1739175051590,-151.0,0.00012329,2]
[352574596,1739175051600,-151.0,0.00012329,2]
[352574597,1739175051609,-151.0,0.00012329,2]
[352574598,1739175051618,-151.0,0.00012329,2]
[352574599,1739175051628,-181.179324,0.00012329,2]
[352574600,1739175051638,-151.0,0.00012329,2]
[352574601,1739175051647,-151.0,0.00012329,2]
[352574602,1739175051657,-583.179096,0.00012329,2]
[352574603,1739175051667,-583.179096,0.00012329,2]
[352574604,1739175051676,-583.179096,0.00012329,2]
[352574605,1739175051685,-583.179096,0.00012329,2]
[352574606,1739175051694,-292.38412,0.00012329,2]
[352574607,1739175051704,-345.833307,0.00012329,2]
[352574608,1739175051713,-345.833307,0.00012329,2]
[352574609,1739175051722,-152.392074,0.00012329,2]
[352574610,1739175051732,-345.833307,0.00012329,2]
[352574611,1739175051742,-345.833307,0.00012329,2]
[352574612,1739175051752,-224.583997,0.00012329,2]
[352574613,1739175051761,-224.583997,0.00012329,2]
[352574614,1739175051770,-224.583997,0.00012329,2]
[352574615,1739175051780,-224.583997,0.00012329,2]
[352574616,1739175051790,-151.0,0.00012329,2]
[352574617,1739175051803,-151.0,0.00012329,2]
[352574618,1739175051813,-151.506351,0.00012329,2]
[352574619,1739175051823,-343.083804,0.000124,2]
[352574620,1739175051834,-343.083804,0.000124,2]
[352574621,1739175051843,-5520.32959338,0.00012464,2]
[352574622,1739175051853,-336.820439,0.00012464,2]
[352574623,1739175051862,-336.820439,0.00012464,2]
[352574624,1739175051873,-495.541542,0.00012464,2]
[352574625,1739175051884,-495.541542,0.00012464,2]
[352574626,1739175051894,-500.0,0.00012465,2]
[352574627,1739175051904,-703.99,0.00012465,2]
[352574628,1739175051914,-660.99,0.00012465,2]
[352574629,1739175051924,-710.76,0.00012465,2]
[352574630,1739175051934,-724.76,0.00012465,2]
[352574631,1739175051943,-512.27,0.00012479,2]
[352574632,1739175051953,-152.0,0.00012488,9]
[352574633,1739175051962,-1000.0,0.000125,3]
[352574634,1739175051971,-1000.0,0.000125,2]
[352574635,1739175051981,-300.0,0.00012602,2]
[352574636,1739175051990,-300.0,0.00012602,2]
[352574637,1739175052000,-300.0,0.00012602,2]
[352574638,1739175052010,-300.0,0.00012602,2]
[352574639,1739175052020,-500.0,0.00012602,2]
[352574640,1739175052029,-703.99,0.00012602,2]
[352574641,1739175052039,-660.99,0.00012602,2]
[352574642,1739175052050,-710.76,0.00012602,2]
[352574643,1739175052059,-724.76,0.00012602,2]
[352574644,1739175052069,-57877.84,0.00012603,2]
[352574645,1739175052078,-151.0,0.00012603,2]
[352574646,1739175052087,-164.0,0.00012603,2]
[352574647,1739175052096,-164.0,0.00012603,2]
[352574648,1739175052106,-151.0,0.00012603,2]
[352574649,1739175052116,-151.0,0.00012603,2]
[352574650,1739175052126,-290.385249,0.00012603,2]
[352574651,1739175052135,-290.385249,0.00012603,2]
[352574652,1739175052144,-280.907553,0.00012603,2]
[352574653,1739175052153,-241.899041,0.00012603,2]
[352574654,1739175052162,-151.0,0.00012603,2]
[352574655,1739175052171,-227.375622,0.00012603,2]
[352574656,1739175052181,-179.315263,0.00012603,2]
[352574657,1739175052191,-179.315263,0.00012603,2]
[352574658,1739175052201,-151.0,0.00012603,2]
[352574659,1739175052210,-151.0,0.00012603,2]
[352574660,1739175052219,-204.922804,0.00012603,2]
[352574661,1739175052228,-204.922804,0.00012603,2]
[352574662,1739175052238,-151.0,0.00012603,2]
[352574663,1739175052246,-393.554387,0.00012603,2]
[352574664,1739175052255,-151.0,0.00012603,2]
[352574665,1739175052264,-395.938598,0.00012603,2]
[352574666,1739175052273,-395.938598,0.00012603,2]
[352574667,1739175052282,-151.0,0.00012603,2]
[352574668,1739175052290,-200.480568,0.00012603,2]
[352574669,1739175052300,-749.507924,0.00012603,2]
[352574670,1739175052310,-749.507924,0.00012603,2]
[352574671,1739175052319,-151.0,0.00012603,2]
[352574672,1739175052328,-151.0,0.00012603,2]
[352574673,1739175052337,-9234.295174,0.00012603,2]
[352574674,1739175052347,-9234.295174,0.00012603,2]
[352574675,1739175052356,-173.851926,0.00012603,2]
[352574676,1739175052365,-173.851926,0.00012603,2]
[352574677,1739175052374,-1408.008449,0.00012603,2]
[352574678,1739175052383,-982.904304,0.00012603,2]
[352574679,1739175052392,-982.904304,0.00012603,2]
[352574680,1739175052401,-1408.008449,0.00012603,2]
[352574681,1739175052410,-151.0,0.00012603,2]
[352574682,1739175052419,-151.0,0.00012603,2]
[352574683,1739175052428,-151.0,0.00012603,2]
[352574684,1739175052437,-180.675456,0.00012603,2]
[352574685,1739175052447,-583.179096,0.00012603,2]
[352574686,1739175052456,-583.179096,0.00012603,2]
[352574687,1739175052465,-345.833307,0.00012603,2]
[352574688,1739175052474,-345.833307,0.00012603,2]
[352574689,1739175052483,-224.583997,0.00012603,2]
[352574690,1739175052493,-224.583997,0.00012603,2]
[352574691,1739175052502,-151.0,0.00012603,2]
[352574692,1739175052512,-1189.56,0.00012615,2]
[352574693,1739175052521,-277.02,0.00012619,2]
[352574694,1739175052530,-1906.03805401,0.0001262,7]
[352574695,1739175052539,-152.0,0.00012687,10]
[352574696,1739175052551,-500.0,0.00012739,2]
[352574697,1739175052563,-343.083804,0.00012739,2]
[352574698,1739175052579,-343.083804,0.00012739,2]
[352574699,1739175052590,-703.99,0.00012739,2]
[352574700,1739175052600,-660.99,0.00012739,2]
[352574701,1739175052609,-710.76,0.00012739,2]
[352574702,1739175052618,-724.76,0.00012739,2]
[352574703,1739175052627,-223.054,0.00012795,2]
[352574704,1739175052636,-223.054,0.00012795,2]
[352574705,1739175052645,-1132.65944423,0.00012866,2]
[352574706,1739175052654,-12921.16989088,0.00012866,2]
[352574707,1739175052663,-336.820439,0.00012866,2]
[352574708,1739175052672,-336.820439,0.00012866,2]
[352574709,1739175052811,-495.541542,0.00012866,2]
[352574710,1739175052822,-495.541542,0.00012866,2]
[352574711,1739175052832,-703.99,0.00012876,2]
[352574712,1739175052842,-660.99,0.00012876,2]
[352574713,1739175052851,-710.76,0.00012876,2]
[352574714,1739175052861,-724.76,0.00012876,2]
[352574715,1739175052872,-152.0,0.00012886,11]
[352574716,1739175052882,-151.0,0.00012893,2]
[352574717,1739175052892,-151.0,0.00012893,2]
[352574718,1739175052902,-151.0,0.00012893,2]
[352574719,1739175052911,-396.356462,0.00012893,2]
[352574720,1739175052925,-396.356462,0.00012893,2]
[352574721,1739175052934,-151.0,0.00012893,2]
[352574722,1739175052944,-172.55947854,0.00012959,2]
[352574723,1739175052954,-300.0,0.00012999,2]
[352574724,1739175052963,-300.0,0.00012999,2]
[352574725,1739175052973,-55510.13867504,0.00013,2]
[352574726,1739175052983,-550.0,0.00013,2]
[352574727,1739175052993,-223.054,0.00013,2]
[352574728,1739175053003,-223.054,0.00013,2]
[352574729,1739175053014,-151.0,0.00013,2]
[352574730,1739175053024,-164.0,0.00013,2]
[352574731,1739175053033,-164.0,0.00013,2]
[352574732,1739175053048,-151.0,0.00013,2]
[352574733,1739175053058,-280.907553,0.00013,2]
[352574734,1739175053067,-151.0,0.00013,2]
[352574735,1739175053077,-179.315263,0.00013,2]
[352574736,1739175053087,-179.315263,0.00013,2]
[352574737,1739175053097,-151.0,0.00013,2]
[352574738,1739175053106,-151.0,0.00013,2]
[352574739,1739175053116,-343.083804,0.00013,2]
[352574740,1739175053126,-343.083804,0.00013,2]
[352574741,1739175053135,-204.922804,0.00013,2]
[352574742,1739175053144,-204.922804,0.00013,2]
[352574743,1739175053154,-179.348081,0.00013,2]
[352574744,1739175053164,-393.554387,0.00013,2]
[352574745,1739175053174,-151.0,0.00013,2]
[352574746,1739175053183,-395.938598,0.00013,2]
[352574747,1739175053193,-395.938598,0.00013,2]
[352574748,1739175053203,-151.0,0.00013,2]
[352574749,1739175053213,-749.507924,0.00013,2]
[352574750,1739175053222,-749.507924,0.00013,2]
[352574751,1739175053232,-232.495754,0.00013,2]
[352574752,1739175053242,-151.0,0.00013,2]
[352574753,1739175053251,-9234.295174,0.00013,2]
[352574754,1739175053261,-9234.295174,0.00013,2]
[352574755,1739175053271,-173.851926,0.00013,2]
[352574756,1739175053280,-173.851926,0.00013,2]
[352574757,1739175053290,-1408.008449,0.00013,2]
[352574758,1739175053303,-982.904304,0.00013,2]
[352574759,1739175053312,-982.904304,0.00013,2]
[352574760,1739175053322,-1408.008449,0.00013,2]
[352574761,1739175053331,-151.0,0.00013,2]
[352574762,1739175053340,-151.0,0.00013,2]
[352574763,1739175053349,-151.0,0.00013,2]
[352574764,1739175053359,-583.179096,0.00013,2]
[352574765,1739175053368,-583.179096,0.00013,2]
[352574766,1739175053378,-345.833307,0.00013,2]
[352574767,1739175053387,-345.833307,0.00013,2]
[352574768,1739175053397,-224.583997,0.00013,2]
[352574769,1739175053407,-224.583997,0.00013,2]
[352574770,1739175053416,-151.0,0.00013,2]
[352574771,1739175053426,-151.0,0.00013013,2]
[352574772,1739175053435,-290.385249,0.00013013,2]
[352574773,1739175053445,-290.385249,0.00013013,2]
[352574774,1739175053454,-703.99,0.00013013,2]
[352574775,1739175053464,-660.99,0.00013013,2]
[352574776,1739175053474,-710.76,0.00013013,2]
[352574777,1739175053483,-724.76,0.00013013,2]
[352574778,1739175053493,-336.820439,0.00013058,2]
[352574779,1739175053502,-336.820439,0.00013058,2]
[352574780,1739175053511,-495.541542,0.00013058,2]
[352574781,1739175053521,-495.541542,0.00013058,2]
[352574782,1739175053531,-152.0,0.00013085,12]
[352574783,1739175053541,-704.1,0.0001315,2]
[352574784,1739175053553,-661.15773932,0.0001315,2]
[352574785,1739175053562,-710.90527661,0.0001315,2]
[352574786,1739175053571,-724.98548566,0.0001315,2]
[352574787,1739175053580,-200.83621461,0.00013167,2]
[352574788,1739175053590,-152.0,0.00013284,13]
[352574789,1739175053599,-1000.0,0.00013342,2]
[352574790,1739175053608,-163.89,0.0001335,2]
[352574791,1739175053617,-211.24,0.00013367,2]
[352574792,1739175053626,-166.36,0.00013453,2]
[352574793,1739175053636,-2343.0,0.0001347,3]
[352574794,1739175053645,-152.0,0.00013483,14]
[352574795,1739175053654,-173.61200865,0.000135,2]
[352574796,1739175053664,-2343.0,0.0001356,4]
[352574797,1739175053674,-750.91669914,0.0001357,2]
[352574798,1739175053683,-400.0,0.0001367,2]
[352574799,1739175053693,-152.0,0.00013682,15]
[352574800,1739175053702,-516.4,0.00013698,2]
[352574801,1739175053712,-516.4,0.00013698,2]
[352574802,1739175053722,-516.4,0.00013698,2]
[352574803,1739175053731,-516.4,0.00013698,2]
[352574804,1739175053741,-516.4,0.00013698,2]
[352574805,1739175053751,-516.4,0.00013698,2]
[352574806,1739175053760,-516.4,0.00013698,2]
[352574807,1739175053769,-516.4,0.00013698,2]
[352574808,1739175053781,-516.4,0.00013698,2]
[352574809,1739175053791,-516.4,0.00013698,2]
[352574810,1739175053802,-516.4,0.00013698,2]
[352574811,1739175053811,-516.4,0.00013698,2]
[352574812,1739175053822,-516.4,0.00013698,2]
[352574813,1739175053831,-516.4,0.00013698,2]
[352574814,1739175053840,-516.4,0.00013698,2]
[352574815,1739175053849,-516.4,0.00013698,2]
[352574816,1739175053859,-516.4,0.00013698,2]
[352574817,1739175053870,-516.4,0.00013698,2]